fUST/lending_fUST_20250302
["ID","MTS","AMOUNT","RATE_DAILY","PERIOD"]
[355033764,1740876667592,-500.0,0.00025479,2]
[355033765,1740876667602,-500.0,0.00025479,2]
[355033766,1740876667612,-2901.38,0.00025479,2]
[355033767,1740876667623,-500.0,0.00025479,2]
[355033768,1740876667633,-2361.65,0.00025479,2]
[355033769,1740876667643,-500.0,0.00025479,2]
[355033770,1740876667654,-500.0,0.00025479,2]
[355033771,1740876667664,-500.0,0.00025479,2]
[355033772,1740876667674,-500.0,0.00025479,2]
[355033773,1740876667684,-500.0,0.00025479,2]
[355033774,1740876667694,-876.58,0.00025479,2]
[355033775,1740876667704,-500.0,0.00025479,2]
[355033776,1740876667715,-500.0,0.00025479,2]
[355033777,1740876667725,-602.79,0.00025479,2]
[355033778,1740876667929,-5681.85,0.00025479,2]
[355033779,1740876667942,-500.0,0.00025479,2]
[355033780,1740876667953,-1424.16,0.00025479,2]
[355033781,1740876667963,-500.0,0.00025479,2]
[355033782,1740876667977,-79014.57909535,0.00025479,2]
[355033783,1740876668380,-5879.14384409,0.00025479,2]
[355033784,1740877514731,500.0,0.00025,14]
[355033785,1740877554766,500.0,0.00024931,30]
[355033786,1740877555139,500.0,0.00024931,30]
[355033787,1740877555436,500.0,0.00024931,30]
[355033788,1740877555740,500.0,0.00024931,30]
[355033789,1740877556053,500.0,0.00024931,30]
[355033790,1740877556326,500.0,0.00025,30]
[355033791,1740877556361,500.0,0.00024931,30]
[355033792,1740877556672,500.0,0.00024931,30]
[355033793,1740877556969,500.0,0.00024931,30]
[355033794,1740877557858,500.0,0.00024931,30]
[355033795,1740877558120,500.0,0.00024931,30]
[355033796,1740877558411,500.0,0.00024931,30]
[355033797,1740877558750,546.636168,0.00024931,30]
[355033798,1740877625121,-300.0,0.0002323,2]
[355033799,1740877625144,-305.2321444,0.00023231,2]
[355033800,1740877741724,10304.98253153,0.00024,30]
[355033801,1740877765128,-176.4,0.00023037,2]
[355033819,1740877832115,-635.21281964,0.00022831,2]
[355033821,1740877832125,-13.8545724,0.00023037,2]
[355033823,1740877832135,-300.0,0.0002323,2]
[355033824,1740877832144,-24594.7678556,0.00023231,2]
[355033825,1740877832154,-187.622516,0.00023253,2]
[355033826,1740877832164,-257.37489502,0.00023946,2]
[355033827,1740877832173,-186.38234289,0.0002414,2]
[355033828,1740877832183,-457.12614078,0.0002414,2]
[355033829,1740877832194,-197.87834524,0.00024156,2]
[355033830,1740877832204,-1004.90717248,0.00024157,2]
[355033831,1740877832213,-274.37116938,0.00024239,2]
[355033832,1740877832223,-298.44983718,0.00024239,2]
[355033833,1740877832233,-210.52225673,0.00024239,2]
[355033834,1740877832242,-50252.67673342,0.0002424,7]
[355033835,1740877837928,-114735.81323282,0.0002424,7]
[355033836,1740877837941,-251389.59904776,0.0002424,7]
[355033837,1740877837950,-19624.61182001,0.0002424,7]
[355033838,1740877837960,-160.0,0.0002424,7]
[355033839,1740877837970,-160.0,0.0002424,7]
[355033840,1740877837979,-186.38234286,0.00024244,2]
[355033841,1740877837989,-222000.0,0.00024257,2]
[355033842,1740877837999,-348.54,0.000243,7]
[355033843,1740877838008,-500.0,0.000243,2]
[355033844,1740877838017,-155.180363,0.00024308,4]
[355033845,1740877838027,-186.38234286,0.00024349,2]
[355033846,1740877838036,-186.38234286,0.00024453,2]
[355033847,1740877838046,-3000.0,0.00024557,2]
[355033848,1740877838056,-186.38234286,0.00024557,2]
[355033849,1740877838066,-8770.83452293,0.00024557,2]
[355033850,1740877838075,-1004.90717248,0.00024606,2]
[355033851,1740877838085,-393689.8282413,0.0002463,7]
[355033852,1740877838094,-1049.51951016,0.00024638,2]
[355033853,1740877838103,-500.0,0.00024642,2]
[355033854,1740877838114,-550.0,0.00024642,2]
[355033855,1740877838123,-605.0,0.00024642,2]
[355033856,1740877838132,-665.5,0.00024642,2]
[355033857,1740877838143,-732.05,0.00024642,2]
[355033858,1740877838152,-805.255,0.00024642,2]
[355033859,1740877838161,-885.7805,0.00024642,2]
[355033860,1740877838173,-974.35855,0.00024642,2]
[355033861,1740877838182,-1071.794405,0.00024642,2]
[355033862,1740877838196,-1000.0,0.00024642,2]
[355033863,1740877838205,-208.84989201,0.00024657,2]
[355033864,1740877838215,-501.90072505,0.00024657,2]
[355033865,1740877838224,-500.0,0.00024657,2]
[355033866,1740877838234,-500.0,0.00024657,2]
[355033867,1740877838243,-500.0,0.00024657,2]
[355033868,1740877838252,-551.9536448,0.00024657,2]
[355033869,1740877838262,-500.0,0.00024657,2]
[355033870,1740877838272,-558.2776123,0.00024657,2]
[355033871,1740877838282,-500.0,0.00024657,2]
[355033872,1740877838291,-460.40740218,0.00024657,2]
[355033873,1740877838300,-500.0,0.00024657,2]
[355033874,1740877838310,-500.0,0.00024657,2]
[355033875,1740877838320,-504.89299059,0.00024657,2]
[355033876,1740877838331,-500.0,0.00024657,2]
[355033877,1740877838341,-500.0,0.00024657,2]
[355033878,1740877838352,-500.0,0.00024657,2]
[355033879,1740877838363,-503.29367334,0.00024657,2]
[355033880,1740877838372,-500.0,0.00024657,2]
[355033881,1740877838382,-534.51152598,0.00024657,2]
[355033882,1740877838392,-500.0,0.00024657,2]
[355033883,1740877838403,-500.0,0.00024657,2]
[355033884,1740877838414,-403.26599901,0.00024657,2]
[355033885,1740877838424,-522.63359419,0.00024657,2]
[355033886,1740877838434,-304.11530453,0.00024657,2]
[355033887,1740877838445,-500.0,0.00024657,2]
[355033888,1740877838455,-500.0,0.00024657,2]
[355033889,1740877838464,-500.0,0.00024657,2]
[355033890,1740877838474,-500.0,0.00024657,2]
[355033891,1740877838483,-500.0,0.00024657,2]
[355033892,1740877838492,-500.2014,0.00024657,2]
[355033893,1740877838502,-500.0,0.00024657,2]
[355033894,1740877838511,-500.0,0.00024657,2]
[355033895,1740877838521,-502.77093405,0.00024657,2]
[355033896,1740877838532,-983.16,0.00024657,2]
[355033897,1740877838541,-500.0,0.00024657,2]
[355033898,1740877838550,-500.0,0.00024657,2]
[355033899,1740877838560,-500.0,0.00024657,2]
[355033900,1740877838571,-500.0,0.00024657,2]
[355033901,1740877838580,-500.0,0.00024657,2]
[355033902,1740877838590,-500.0,0.00024657,2]
[355033903,1740877838600,-500.0,0.00024657,2]
[355033904,1740877838610,-500.0,0.00024657,2]
[355033905,1740877838619,-500.0,0.00024657,2]
[355033906,1740877838629,-500.0,0.00024657,2]
[355033907,1740877838639,-500.0,0.00024657,2]
[355033908,1740877838649,-500.0,0.00024657,2]
[355033909,1740877838659,-500.0,0.00024657,2]
[355033910,1740877838671,-500.0,0.00024657,2]
[355033911,1740877838680,-500.0,0.00024657,2]
[355033912,1740877838690,-500.0,0.00024657,2]
[355033913,1740877838700,-500.0,0.00024657,2]
[355033914,1740877838709,-500.0,0.00024657,2]
[355033915,1740877838718,-500.0,0.00024657,2]
[355033916,1740877838728,-500.0,0.00024657,2]
[355033917,1740877838737,-634.45,0.00024657,2]
[355033918,1740877838746,-500.0,0.00024657,2]
[355033919,1740877838756,-500.0,0.00024657,2]
[355033920,1740877838765,-500.0,0.00024657,2]
[355033921,1740877838775,-500.0,0.00024657,2]
[355033922,1740877838784,-500.0,0.00024657,2]
[355033923,1740877838794,-500.0,0.00024657,2]
[355033924,1740877838803,-500.0,0.00024657,2]
[355033925,1740877838813,-500.0,0.00024657,2]
[355033926,1740877838823,-500.0,0.00024657,2]
[355033927,1740877838832,-336.44272036,0.00024657,2]
[355033928,1740877838842,-500.0,0.00024657,2]
[355033929,1740877838851,-500.0,0.00024657,2]
[355033930,1740877838861,-762.49,0.00024657,2]
[355033931,1740877838871,-161.55409881,0.00024657,2]
[355033932,1740877838881,-500.0,0.00024657,2]
[355033933,1740877838891,-500.0,0.00024657,2]
[355033934,1740877838900,-500.0,0.00024657,2]
[355033935,1740877838911,-500.0,0.00024657,2]
[355033936,1740877838920,-500.0,0.00024657,2]
[355033937,1740877838930,-500.0,0.00024657,2]
[355033938,1740877838940,-500.0,0.00024657,2]
[355033939,1740877838949,-521.48031741,0.00024657,2]
[355033940,1740877838959,-922.23,0.00024657,2]
[355033941,1740877838969,-913.09,0.00024657,2]
[355033942,1740877838978,-1296.91,0.00024657,2]
[355033943,1740877838988,-500.0,0.00024657,2]
[355033944,1740877838997,-500.0,0.00024657,2]
[355033945,1740877839007,-500.0,0.00024657,2]
[355033946,1740877839017,-500.0,0.00024657,2]
[355033947,1740877839026,-533.40424609,0.00024657,2]
[355033948,1740877839036,-1272.96,0.00024657,2]
[355033949,1740877839045,-500.0,0.00024657,2]
[355033950,1740877839055,-500.0,0.00024657,2]
[355033951,1740877839288,-500.0,0.00024657,2]
[355033952,1740877839300,-165.40084644,0.00024657,10]
[355033953,1740877839310,-500.0,0.00024657,2]
[355033954,1740877839320,-500.0,0.00024657,2]
[355033955,1740877839330,-500.0,0.00024657,2]
[355033956,1740877839341,-238.5656605,0.00024657,2]
[355033957,1740877839354,-500.0,0.00024657,2]
[355033958,1740877839367,-505.41560755,0.00024657,2]
[355033959,1740877839379,-500.0,0.00024657,2]
[355033960,1740877839392,-500.0,0.00024657,2]
[355033961,1740877839402,-500.0,0.00024657,2]
[355033962,1740877839412,-500.0,0.00024657,2]
[355033963,1740877839422,-343.43110475,0.00024657,2]
[355033964,1740877839435,-500.0,0.00024657,2]
[355033965,1740877839446,-500.0,0.00024657,2]
[355033966,1740877839455,-500.0,0.00024657,2]
[355033967,1740877839465,-500.0,0.00024657,2]
[355033968,1740877839474,-500.0,0.00024657,2]
[355033969,1740877839484,-445.18743021,0.00024657,2]
[355033970,1740877839494,-500.0,0.00024657,2]
[355033971,1740877839503,-828.16,0.00024657,2]
[355033972,1740877839513,-509.44,0.00024657,2]
[355033973,1740877839522,-435.64789553,0.00024657,2]
[355033975,1740877839532,-500.0,0.00024657,2]
[355033977,1740877839542,-500.0,0.00024657,2]
[355033979,1740877839551,-500.0,0.00024657,2]
[355033981,1740877839567,-500.0,0.00024657,2]
[355033982,1740877839577,-500.0,0.00024657,2]
[355033984,1740877839586,-500.0,0.00024657,2]
[355033985,1740877839596,-500.0,0.00024657,2]
[355033986,1740877839606,-500.0,0.00024657,2]
[355033987,1740877839617,-500.0,0.00024657,2]
[355033988,1740877839626,-500.0,0.00024657,2]
[355033989,1740877839636,-500.0,0.00024657,2]
[355033990,1740877839646,-500.0,0.00024657,2]
[355033991,1740877839655,-375.79904528,0.00024657,2]
[355033992,1740877839667,-500.0,0.00024657,2]
[355033993,1740877839677,-500.0,0.00024657,2]
[355033994,1740877839686,-500.0,0.00024657,2]
[355033995,1740877839696,-500.0,0.00024657,2]
[355033996,1740877839707,-500.0,0.00024657,2]
[355033997,1740877839716,-500.0,0.00024657,2]
[355033998,1740877839726,-500.0,0.00024657,2]
[355033999,1740877839736,-500.0,0.00024657,2]
[355034000,1740877839746,-500.0,0.00024657,2]
[355034001,1740877839756,-500.0,0.00024657,2]
[355034002,1740877839765,-500.0,0.00024657,2]
[355034003,1740877839775,-500.0,0.00024657,2]
[355034004,1740877839785,-500.0,0.00024657,2]
[355034005,1740877839795,-500.0,0.00024657,2]
[355034006,1740877839805,-1645.57,0.00024657,2]
[355034007,1740877839814,-500.0,0.00024657,2]
[355034008,1740877839824,-656.48,0.00024657,2]
[355034009,1740877839833,-500.0,0.00024657,2]
[355034010,1740877839842,-504.51595322,0.00024657,2]
[355034011,1740877839851,-500.0,0.00024657,2]
[355034012,1740877839859,-521.8234435,0.00024657,2]
[355034013,1740877839868,-500.0,0.00024657,2]
[355034014,1740877839878,-500.0,0.00024657,2]
[355034015,1740877839887,-500.0,0.00024657,2]
[355034016,1740877839896,-500.0,0.00024657,2]
[355034017,1740877839906,-500.0,0.00024657,2]
[355034018,1740877839916,-500.0,0.00024657,2]
[355034019,1740877839926,-1340.71,0.00024657,2]
[355034020,1740877839935,-500.0,0.00024657,2]
[355034021,1740877839944,-500.0,0.00024657,2]
[355034022,1740877839955,-506.5828926,0.00024657,2]
[355034023,1740877839965,-500.0,0.00024657,2]
[355034024,1740877839974,-500.0,0.00024657,2]
[355034025,1740877839984,-500.0,0.00024657,2]
[355034026,1740877839994,-526.96,0.00024657,2]
[355034027,1740877840003,-500.0,0.00024657,2]
[355034028,1740877840013,-500.0,0.00024657,2]
[355034029,1740877840022,-500.0,0.00024657,2]
[355034030,1740877840033,-500.0,0.00024657,2]
[355034031,1740877840043,-522.4143186,0.00024657,2]
[355034032,1740877840053,-500.0,0.00024657,2]
[355034033,1740877840063,-500.0,0.00024657,2]
[355034034,1740877840073,-914.1,0.00024657,2]
[355034035,1740877840083,-500.0,0.00024657,2]
[355034036,1740877840092,-502.9266679,0.00024657,2]
[355034037,1740877840102,-500.0,0.00024657,2]
[355034038,1740877840111,-511.95,0.00024657,2]
[355034039,1740877840121,-1312.81,0.00024657,2]
[355034040,1740877840130,-500.0,0.00024657,2]
[355034041,1740877840139,-1019.33,0.00024657,2]
[355034042,1740877840149,-1019.33,0.00024657,2]
[355034044,1740877840158,-1019.33,0.00024657,2]
[355034046,1740877840169,-1019.33,0.00024657,2]
[355034048,1740877840179,-1019.33,0.00024657,2]
[355034050,1740877840188,-1019.33,0.00024657,2]
[355034052,1740877840199,-1019.33,0.00024657,2]
[355034053,1740877840209,-1019.33,0.00024657,2]
[355034056,1740877840219,-1019.33,0.00024657,2]
[355034058,1740877840229,-1019.33,0.00024657,2]
[355034060,1740877840238,-1019.33,0.00024657,2]
[355034062,1740877840248,-1019.33,0.00024657,2]
[355034064,1740877840258,-1019.33,0.00024657,2]
[355034066,1740877840268,-1019.33,0.00024657,2]
[355034067,1740877840278,-1019.33,0.00024657,2]
[355034070,1740877840287,-1019.33,0.00024657,2]
[355034071,1740877840297,-1019.33,0.00024657,2]
[355034072,1740877840307,-1019.33,0.00024657,2]
[355034073,1740877840316,-1019.33,0.00024657,2]
[355034074,1740877840326,-660.28,0.00024657,2]
[355034075,1740877840336,-1019.33,0.00024657,2]
[355034076,1740877840348,-1019.33,0.00024657,2]
[355034077,1740877840363,-1019.33,0.00024657,2]
[355034078,1740877840372,-1019.33,0.00024657,2]
[355034079,1740877840382,-500.0,0.00024657,2]
[355034080,1740877840393,-1019.4,0.00024657,2]
[355034081,1740877840403,-500.0,0.00024657,2]
[355034082,1740877840412,-500.0,0.00024657,2]
[355034083,1740877840422,-857.14,0.00024657,2]
[355034084,1740877840433,-500.0,0.00024657,2]
[355034085,1740877840442,-1000.0,0.00024657,2]
[355034086,1740877840452,-1545.03,0.00024657,2]
[355034087,1740877840461,-500.0,0.00024657,2]
[355034088,1740877840471,-500.0,0.00024657,2]
[355034089,1740877840481,-500.0,0.00024657,2]
[355034090,1740877840490,-500.0,0.00024657,2]
[355034091,1740877840500,-994.65,0.00024657,2]
[355034092,1740877840510,-500.0,0.00024657,2]
[355034093,1740877840519,-500.0,0.00024657,2]
[355034094,1740877840529,-500.0,0.00024657,2]
[355034095,1740877840539,-643.16,0.00024657,2]
[355034096,1740877840549,-500.0,0.00024657,2]
[355034097,1740877840558,-500.0,0.00024657,2]
[355034098,1740877840568,-500.0,0.00024657,2]
[355034099,1740877840578,-539.85,0.00024657,2]
[355034100,1740877840588,-500.0,0.00024657,2]
[355034101,1740877840598,-500.0,0.00024657,2]
[355034102,1740877840608,-500.0,0.00024657,2]
[355034103,1740877840617,-225.91226886,0.00024657,2]
[355034104,1740877840627,-500.0,0.00024657,2]
[355034105,1740877840637,-500.0,0.00024657,2]
[355034106,1740877840646,-500.0,0.00024657,2]
[355034107,1740877840656,-500.0,0.00024657,2]
[355034108,1740877840666,-500.0,0.00024657,2]
[355034109,1740877840676,-500.0,0.00024657,2]
[355034110,1740877840685,-593.21,0.00024657,2]
[355034111,1740877840695,-634.47852463,0.00024657,2]
[355034112,1740877840704,-500.0,0.00024657,2]
[355034113,1740877840714,-500.0,0.00024657,2]
[355034114,1740877840724,-500.0,0.00024657,2]
[355034115,1740877840733,-500.0,0.00024657,2]
[355034116,1740877840743,-500.0,0.00024657,2]
[355034117,1740877840753,-1409.88,0.00024657,2]
[355034118,1740877840762,-500.0,0.00024657,2]
[355034119,1740877840772,-500.0,0.00024657,2]
[355034120,1740877840781,-785.23,0.00024657,2]
[355034121,1740877840791,-500.0,0.00024657,2]
[355034122,1740877840800,-500.0,0.00024657,2]
[355034123,1740877840809,-500.0,0.00024657,2]
[355034124,1740877840819,-500.0,0.00024657,2]
[355034125,1740877840829,-500.0,0.00024657,2]
[355034126,1740877840838,-500.0,0.00024657,2]
[355034127,1740877840847,-267.40314318,0.00024657,2]
[355034128,1740877840857,-525.04,0.00024657,2]
[355034129,1740877840866,-500.0,0.00024657,2]
[355034130,1740877840876,-500.0,0.00024657,2]
[355034131,1740877840885,-503.95,0.00024657,2]
[355034132,1740877840895,-500.0,0.00024657,2]
[355034133,1740877840905,-604.33,0.00024657,2]
[355034134,1740877840915,-500.0,0.00024657,2]
[355034135,1740877840925,-500.0,0.00024657,2]
[355034136,1740877840934,-500.0,0.00024657,2]
[355034137,1740877840943,-768.63,0.00024657,2]
[355034138,1740877840953,-500.0,0.00024657,2]
[355034139,1740877840963,-1171.5,0.00024657,2]
[355034140,1740877840973,-500.0,0.00024657,2]
[355034141,1740877840983,-500.0,0.00024657,2]
[355034142,1740877840993,-500.0,0.00024657,2]
[355034143,1740877841003,-500.0,0.00024657,2]
[355034144,1740877841012,-500.0,0.00024657,2]
[355034145,1740877841021,-500.0,0.00024657,2]
[355034146,1740877841031,-500.0,0.00024657,2]
[355034147,1740877841040,-500.0,0.00024657,2]
[355034148,1740877841049,-500.0,0.00024657,2]
[355034149,1740877841058,-1291.1,0.00024657,2]
[355034150,1740877841068,-500.0,0.00024657,2]
[355034151,1740877841077,-500.0,0.00024657,2]
[355034152,1740877841087,-500.0,0.00024657,2]
[355034153,1740877841096,-500.0,0.00024657,2]
[355034154,1740877841105,-500.0,0.00024657,2]
[355034155,1740877841115,-500.0,0.00024657,2]
[355034156,1740877841125,-500.0,0.00024657,2]
[355034157,1740877841135,-500.0,0.00024657,2]
[355034158,1740877841144,-500.0,0.00024657,2]
[355034159,1740877841154,-500.0,0.00024657,2]
[355034160,1740877841164,-1898.76,0.00024657,2]
[355034161,1740877841173,-500.0,0.00024657,2]
[355034162,1740877841183,-500.0,0.00024657,2]
[355034163,1740877841192,-500.0,0.00024657,2]
[355034164,1740877841202,-500.0,0.00024657,2]
[355034165,1740877841211,-500.0,0.00024657,2]
[355034166,1740877841221,-500.0,0.00024657,2]
[355034167,1740877841230,-500.0,0.00024657,2]
[355034168,1740877841239,-500.0,0.00024657,2]
[355034169,1740877841248,-500.0,0.00024657,2]
[355034170,1740877841257,-500.0,0.00024657,2]
[355034171,1740877841267,-500.0,0.00024657,2]
[355034172,1740877841276,-500.0,0.00024657,2]
[355034173,1740877841285,-500.0,0.00024657,2]
[355034174,1740877841294,-500.0,0.00024657,2]
[355034175,1740877841303,-500.0,0.00024657,2]
[355034176,1740877841312,-613.07,0.00024657,2]
[355034177,1740877841321,-500.0,0.00024657,2]
[355034178,1740877841331,-500.0,0.00024657,2]
[355034179,1740877841340,-500.0,0.00024657,2]
[355034180,1740877841350,-500.0,0.00024657,2]
[355034181,1740877841364,-500.0,0.00024657,2]
[355034182,1740877841373,-500.0,0.00024657,2]
[355034183,1740877841382,-505.41650911,0.00024657,2]
[355034184,1740877841391,-500.0,0.00024657,2]
[355034185,1740877841401,-500.0,0.00024657,2]
[355034186,1740877841411,-500.0,0.00024657,2]
[355034187,1740877841421,-500.0,0.00024657,2]
[355034188,1740877841431,-1748.83,0.00024657,2]
[355034189,1740877841440,-500.0,0.00024657,2]
[355034190,1740877841450,-500.0,0.00024657,2]
[355034191,1740877841459,-500.0,0.00024657,2]
[355034192,1740877841468,-500.0,0.00024657,2]
[355034193,1740877841478,-500.0,0.00024657,2]
[355034194,1740877841487,-500.0,0.00024657,2]
[355034195,1740877841496,-500.0,0.00024657,2]
[355034196,1740877841505,-500.0,0.00024657,2]
[355034197,1740877841515,-500.0,0.00024657,2]
[355034198,1740877841524,-845.02,0.00024657,2]
[355034199,1740877841533,-500.0,0.00024657,2]
[355034200,1740877841542,-500.0,0.00024657,2]
[355034201,1740877841551,-1280.31,0.00024657,2]
[355034202,1740877841561,-1775.3,0.00024657,2]
[355034203,1740877841570,-500.0,0.00024657,2]
[355034204,1740877841579,-1652.1,0.00024657,2]
[355034205,1740877841589,-500.0,0.00024657,2]
[355034206,1740877841598,-500.0,0.00024657,2]
[355034207,1740877841608,-500.0,0.00024657,2]
[355034208,1740877841617,-500.0,0.00024657,2]
[355034209,1740877841626,-632.33112071,0.00024657,2]
[355034210,1740877841635,-500.0,0.00024657,2]
[355034211,1740877841645,-500.0,0.00024657,2]
[355034212,1740877841654,-500.0,0.00024657,2]
[355034213,1740877841665,-500.0,0.00024657,2]
[355034214,1740877841674,-709.16,0.00024657,2]
[355034215,1740877841682,-510.19824017,0.00024657,2]
[355034216,1740877841693,-1152.82,0.00024657,2]
[355034217,1740877841702,-500.0,0.00024657,2]
[355034218,1740877841711,-500.0,0.00024657,2]
[355034219,1740877841721,-500.0,0.00024657,2]
[355034220,1740877841730,-500.0,0.00024657,2]
[355034221,1740877841739,-500.0,0.00024657,2]
[355034222,1740877841748,-500.0,0.00024657,2]
[355034223,1740877841757,-583.0,0.00024657,2]
[355034224,1740877841766,-500.0,0.00024657,2]
[355034225,1740877841774,-500.0,0.00024657,2]
[355034226,1740877841784,-500.0,0.00024657,2]
[355034227,1740877841792,-500.0,0.00024657,2]
[355034228,1740877841801,-500.0,0.00024657,2]
[355034229,1740877841810,-757.03,0.00024657,2]
[355034230,1740877841819,-500.0,0.00024657,2]
[355034231,1740877841829,-500.0,0.00024657,2]
[355034232,1740877841838,-500.0,0.00024657,2]
[355034233,1740877841849,-552.49454,0.00024657,2]
[355034234,1740877841858,-500.0,0.00024657,2]
[355034235,1740877841867,-669.95,0.00024657,2]
[355034236,1740877841876,-1999.0,0.00024657,2]
[355034237,1740877841886,-500.0,0.00024657,2]
[355034238,1740877841895,-500.0,0.00024657,2]
[355034239,1740877841905,-1069.47,0.00024657,2]
[355034240,1740877841915,-543.17,0.00024657,2]
[355034241,1740877841924,-200.0,0.00024657,2]
[355034242,1740877841933,-500.0,0.00024657,2]
[355034243,1740877841943,-893.73,0.00024657,2]
[355034244,1740877841953,-507.38659911,0.00024657,2]
[355034245,1740877841962,-500.0,0.00024657,2]
[355034246,1740877841971,-500.0,0.00024657,2]
[355034247,1740877841980,-519.36,0.00024657,2]
[355034248,1740877841989,-500.0,0.00024657,2]
[355034249,1740877841999,-500.0,0.00024657,2]
[355034250,1740877842008,-501.07904265,0.00024657,2]
[355034251,1740877842018,-718.22,0.00024657,2]
[355034252,1740877842027,-500.0,0.00024657,2]
[355034253,1740877842036,-500.0,0.00024657,2]
[355034254,1740877842045,-500.0,0.00024657,2]
[355034255,1740877842055,-500.0,0.00024657,2]
[355034256,1740877842064,-500.0,0.00024657,2]
[355034257,1740877842074,-500.0,0.00024657,2]
[355034258,1740877842083,-1106.33,0.00024657,2]
[355034259,1740877842092,-1106.33,0.00024657,2]
[355034260,1740877842103,-500.0,0.00024657,2]
[355034261,1740877842112,-500.0,0.00024657,2]
[355034262,1740877842121,-1106.33,0.00024657,2]
[355034263,1740877842131,-1106.33,0.00024657,2]
[355034264,1740877842140,-1106.33,0.00024657,2]
[355034265,1740877842150,-1106.33,0.00024657,2]
[355034266,1740877842159,-1106.33,0.00024657,2]
[355034267,1740877842168,-1106.33,0.00024657,2]
[355034268,1740877842178,-500.0,0.00024657,2]
[355034269,1740877842187,-1106.33,0.00024657,2]
[355034270,1740877842197,-1106.33,0.00024657,2]
[355034271,1740877842206,-1106.33,0.00024657,2]
[355034272,1740877842216,-1106.33,0.00024657,2]
[355034273,1740877842225,-1106.33,0.00024657,2]
[355034274,1740877842236,-1106.33,0.00024657,2]
[355034275,1740877842246,-500.0,0.00024657,2]
[355034276,1740877842256,-1106.33,0.00024657,2]
[355034277,1740877842265,-1106.33,0.00024657,2]
[355034278,1740877842275,-1106.33,0.00024657,2]
[355034279,1740877842285,-1106.33,0.00024657,2]
[355034280,1740877842295,-507.40677207,0.00024657,2]
[355034281,1740877842304,-500.0,0.00024657,2]
[355034282,1740877842313,-1106.33,0.00024657,2]
[355034283,1740877842323,-1106.33,0.00024657,2]
[355034284,1740877842332,-1106.33,0.00024657,2]
[355034285,1740877842342,-1106.33,0.00024657,2]
[355034286,1740877842353,-1106.33,0.00024657,2]
[355034287,1740877842364,-1106.5,0.00024657,2]
[355034288,1740877842373,-500.0,0.00024657,2]
[355034289,1740877842383,-500.0,0.00024657,2]
[355034290,1740877842394,-729.5,0.00024657,2]
[355034291,1740877842403,-500.0,0.00024657,2]
[355034292,1740877842414,-1210.72,0.00024657,2]
[355034293,1740877842424,-500.0,0.00024657,2]
[355034294,1740877842433,-500.0,0.00024657,2]
[355034295,1740877842444,-720.06,0.00024657,2]
[355034296,1740877842453,-500.0,0.00024657,2]
[355034297,1740877842463,-525.25,0.00024657,2]
[355034298,1740877842472,-500.0,0.00024657,2]
[355034299,1740877842482,-500.0,0.00024657,2]
[355034300,1740877842491,-500.0,0.00024657,2]
[355034301,1740877842501,-500.0,0.00024657,2]